Workbook

Sheet от 1 года до 3х лет
A1: Утверждаю | H1: Согласовано
A2: Директор ООО "ФУДСОЦСЕРВИС" | H2: Руководитель дошкольной образовательной
A3: Харламова Э.Р. | H3: организации
E6: Примерное 10-дневное меню
E7: для организации питания детей в дошкольных учреждениях
E8: с 12 - часовым пребыванием от 1 года до 3 лет
A9: День 1 - ый
A10: Наименование блюд и продуктов | B10: Ингридиенты | C10: Масса порции | D10: Кол - во (в г ) | E10: Кол - во (в г ) | F10: Пищевые вещества | I10: Энергетическая ценность | J10: Витамин | K10: Сборник рецептур
D11: брутто | E11: нетто | F11: белки | G11: жиры | H11: угл-ды | I11: Ккал | J11: С
B12: ЗАВТРАК
A13: Каша геркулесовая молочная с маслом сливочным | C13: 140/3 | F13: 5.79 | G13: 6.28 | H13: 26.29 | I13: 185.66 | J13: 0.67 | K13: ТТК №5Д
B14: Крупа геркулесовая | D14: 18.00 | E14: 18.00
B15: Молоко | D15: 123.00 | E15: 123.00
B16: Сахар | D16: 2.00 | E16: 2.00
B17: Соль йодированная | D17: 0.40 | E17: 0.40
B18: Масло сливочное | D18: 3.00 | E18: 3.00
A19: Кофейный напиток с молоком | C19: 180/6 | F19: 2.85 | G19: 2.41 | H19: 10.35 | I19: 74.58 | J19: 1.17 | K19: №414 Дели 2016
B20: Кофейный напиток | D20: 2.50 | E20: 2.50
B21: Сахар | D21: 6.00 | E21: 6.00
B22: Молоко | D22: 90.00 | E22: 90.00
B23: Вода | D23: 108.00 | E23: 108.00
A24: Бутерброд с сыром, маслом сливочным | C24: 25/5/5 | F24: 2.53 | G24: 5.69 | H24: 12.92 | I24: 115.67 | J24: 0.07 | K24: №3 сб дошк 2016
B25: Батон нарезной | D25: 25.00 | E25: 25.00
B26: Сыр | D26: 5.10 | E26: 5.00
B27: Масло сливочное | D27: 5.00 | E27: 5.00
A28: Итого: | C28: =143+186+35 -> 364 | F28: =SUM(F12:F27) -> 11.17 | G28: =SUM(G12:G27) -> 14.38 | H28: =SUM(H12:H27) -> 49.56 | I28: =SUM(I12:I27) -> 375.91 | J28: =SUM(J12:J27) -> 1.91
B29: 2 - ой ЗАВТРАК
A30: Фрукты свежие | C30: 100 | D30: 100.00 | E30: 100.00 | F30: 0.40 | G30: 0.40 | H30: 9.80 | I30: 47.00 | J30: 10.00 | K30: №386 СБ
A31: (яблоки,или апельсин, или банан,или мандарин ) | K31: дошк. 2016
A32: Итого: | C32: 100 | F32: =SUM(F30:F31) -> 0.40 | G32: =SUM(G30:G31) -> 0.40 | H32: =SUM(H30:H31) -> 9.80 | I32: =SUM(I30:I31) -> 47.00 | J32: =SUM(J30:J31) -> 10.00
B33: ОБЕД
A34: Салат из кукурузы к/с | C34: 30 | F34: 0.86 | G34: 1.85 | H34: 2.41 | I34: 29.79 | J34: 2.79 | K34: №10, сб дошк 2016
B35: кукуруза к/с | D35: 46.60 | E35: 27.90
B36: сахар | D36: 0.60 | E36: 0.60
B37: Масло растительное | D37: 1.80 | E37: 1.80
A38: Суп картофельный с клецками на курином бульоне | C38: 150 | F38: 2.58 | G38: 2.86 | H38: 11.27 | I38: 89.36 | J38: 3.45 | K38: №91сб дошк 2016
B39: картофель | D39: 66.60 | E39: 50.00
B40: морковь | D40: 7.50 | E40: 6.00
B41: лук репчатый | D41: 7.20 | E41: 6.00
B42: масло растительное | D42: 1.50 | E42: 1.50
B43: соль иодированная | D43: 0.50 | E43: 0.50
B44: бульон | D44: 112.50 | E44: 112.50
B45: клецки: | E45: 15.00
B46: мука пшеничная | D46: 4.60 | E46: 4.60
B47: масло сливочное | D47: 0.50 | E47: 0.50
B48: яйцо | D48: 1.60 | E48: 1.32
B49: вода | D49: 7.30 | E49: 7.30
B50: соль йодированная | D50: 0.10 | E50: 0.10
B51: масса теста | E51: 13.50
B52: масса готовых клецек | E52: 15.00
A53: Плов из отварной птицы | C53: 150 | F53: 12.71 | G53: 7.85 | H53: 26.80 | I53: 229.00 | J53: 4.52 | K53: №321, сб дошк 2016
B54: цыплята-бройлеры с/м | D54: 58.50 | E54: 55.20
B55: масса отварной птицы | E55: 24.00
B56: масло сливочное | D56: 5.00 | E56: 5.00
B57: Лук репчатый | D57: 8.93 | E57: 7.50
B58: Морковь | D58: 12.50 | E58: 10.00
B59: Крупа рисовая | D59: 32.00 | E59: 32.00
B60: вода | D60: 65.00 | E60: 65.00
B61: соль иодированная | D61: 0.50 | E61: 0.50
B62: масса гарнира | E62: 126.00
A63: Напиток из сухофруктов | C63: 150 | F63: 0.50 | G63: 0.07 | H63: 14.00 | I63: 60 | J63: 0.54 | K63: №394 Сб дошк 2016
B64: сухофрукты | D64: 12.75 | E64: 12.50
B65: Сахар | D65: 5.00 | E65: 5.00
B66: вода | D66: 152.00 | E66: 152.00
A67: Хлеб пшеничный | C67: 30 | D67: 30.00 | E67: 30.00 | F67: 2.28 | G67: 0.24 | H67: 14.77 | I67: 70.57 | J67: 0.00 | K67: табл 6 стр 134, Дели +, 2012
A68: Хлеб ржаной | C68: 35 | D68: 35.00 | E68: 35.00 | F68: 2.31 | G68: 0.42 | H68: 13.85 | I68: 69.23 | K68: табл 6 стр 144, Дели +, 2012
A69: Итого: | C69: =C34+C38+C53+C63+C67+C68 -> 545 | F69: =SUM(F33:F68) -> 21.24 | G69: =SUM(G33:G68) -> 13.29 | H69: 83.10 | I69: 547.95 | J69: 11.30
B70: УПЛОТНЕННЫЙ ПОЛДНИК
A71: Кисломолочный напиток | C71: 150 | F71: 4.35 | G71: 3.75 | H71: 6.30 | I71: 76.00 | J71: 0.45 | K71: №420 Сб дошк 2016
A72: (катык, кефир, напиток ацидофильный, ряженка) | B72: кисломолочный напиток | D72: 155.00 | E72: 150.00
A73: Кондитерское изделие | B73: печенье | C73: 20 | D73: 20.00 | E73: 20.00 | F73: 1.50 | G73: 1.96 | H73: 14.88 | I73: 83.40 | K73: табл 6 стр 136, Дели +, 2012
A74: Пудинг рыбный | C74: 45/15 | F74: 8.98 | G74: 2.93 | H74: 4.40 | I74: 80.00 | J74: 0.32 | K74: №286 СБ дошк 2016
B75: рыба (минтай с/м БГ) | D75: 51.54 | E75: 37.90
B76: масса отварной рыбы | E76: 30.00
B77: Хлеб пшеничный | D77: 6.20 | E77: 6.20
B78: яйцо | D78: 4.80 | E78: 4.00
B79: молоко | D79: 9.00 | E79: 9.00
B80: масло сливочное | D80: 1.70 | E80: 1.70
B81: соль иодированная | D81: 0.30 | E81: 0.30
B82: Масло растительное | D82: 0.80 | E82: 0.80
B83: масса пудинга | E83: 45.00
B84: Соус молочный
B85: молоко | D85: 7.50 | E85: 7.50
B86: масло сливочное | D86: 0.80 | E86: 0.80
B87: Мука пшеничная | D87: 0.80 | E87: 0.80
B88: Вода | D88: 7.50 | E88: 7.50
B89: Сахар | D89: 0.15 | E89: 0.15
B90: соль иодированная | D90: 0.09 | E90: 0.09
B91: масса соуса | E91: 15.00
A92: Пюре Картофельное | C92: 120 | F92: 2.45 | G92: 3.84 | H92: 16.35 | I92: 109.80 | J92: 14.53 | K92: №339 СБ дошк 2016
B93: Картофель | D93: 136.80 | E93: 102.60
B94: Молоко | D94: 18.96 | E94: 18.00
B95: Масло сливочное | D95: 4.20 | E95: 4.20
B96: соль иодированная | D96: 0.45 | E96: 0.45
A97: Хлеб пшеничный | C97: 30 | D97: 30.00 | E97: 30.00 | F97: 2.28 | G97: 0.24 | H97: 14.77 | I97: 70.57 | J97: 0.00 | K97: табл 6 стр 134, Дели +, 2012
A98: Чай с сахаром | C98: 150/5 | F98: 0.06 | G98: 0.02 | H98: 5.01 | I98: 19.95 | J98: 0.03 | K98: №410, 411 Дели 2016
B99: чай весовой | D99: 0.40 | E99: 0.40
B100: Сахар | D100: 5.00 | E100: 5.00
B101: Вода | D101: 150.00 | E101: 150.00
A102: Итого: | C102: =C71+C73+60+C92+C97+155 -> 535 | F102: =SUM(F70:F101) -> 19.63 | G102: =SUM(G70:G101) -> 12.74 | H102: =SUM(H70:H101) -> 61.71 | I102: =SUM(I70:I101) -> 439.72 | J102: =SUM(J70:J101) -> 15.33
A103: ВСЕГО: | C103: =C28+C32+C69+C102 -> 1544 | F103: =F28+F32+F69+F102 -> 52.43 | G103: =G28+G32+G69+G102 -> 40.81 | H103: =H28+H32+H69+H102 -> 204.18 | I103: =I28+I32+I69+I102 -> 1410.58 | J103: =J28+J32+J69+J102 -> 38.54
A105: День 2- ой
A106: Наименование блюд и продуктов | B106: Ингридиенты | C106: Масса порции | D106: Кол - во (в г ) | E106: Кол - во (в г ) | F106: Пищевые вещества | I106: Энергетическая ценность | J106: Витамин | K106: Сборник рецептур
D107: брутто | E107: нетто | F107: белки | G107: жиры | H107: угл-ды | I107: Ккал | J107: С
B108: ЗАВТРАК
A109: Каша пшеничная молочная с маслом сливочным | C109: 140/3 | F109: 6.02 | G109: 4.84 | H109: 30.97 | I109: 191.96 | J109: 0.67 | K109: ТТК №9Д
B110: Крупа пшеничная | D110: 18.00 | E110: 18.00
B111: Молоко | D111: 70.00 | E111: 70.00
B112: Вода | D112: 53.00 | E112: 53.00
B113: Сахар | D113: 2.00 | E113: 2.00
B114: соль иодированная | D114: 0.40 | E114: 0.40
B115: Масло сливочное | D115: 3.00 | E115: 3.00
A116: Какао с молоком | C116: 180/6 | F116: 3.67 | G116: 3.19 | H116: 10.87 | I116: 90.78 | J116: 1.43 | K116: №416 Дели 2016
B117: Какао-порошок | D117: 2.00 | E117: 2.00
B118: Сахар | D118: 6.00 | E118: 6.00
B119: Молоко | D119: 110.00 | E119: 110.00
B120: Вода | D120: 80.00 | E120: 80.00
A121: Бутерброд с маслом сливочным | C121: 25/5 | F121: 1.92 | G121: 4.36 | H121: 12.92 | I121: 98.50 | K121: №1 Дели 2016
B122: Батон нарезной | D122: 25.00 | E122: 25.00
B123: Масло сливочное | D123: 5.00 | E123: 5.00
A124: Итого: | C124: 359 | F124: =SUM(F109:F123) -> 11.61 | G124: =SUM(G109:G123) -> 12.38 | H124: =SUM(H109:H123) -> 54.76 | I124: =SUM(I109:I123) -> 381.24 | J124: =SUM(J109:J123) -> 2.10
B125: 2 - ой ЗАВТРАК
A126: Сок в инд.упаковке | C126: 200 | D126: 200.00 | E126: 200.00 | F126: 1.00 | G126: 0.00 | H126: 20.20 | I126: 84.80 | J126: 4.00 | K126: №418 Дели 2016
A127: Итого: | C127: 200 | F127: =SUM(F126) -> 1.00 | G127: =SUM(G126) -> 0.00 | H127: =SUM(H126) -> 20.20 | I127: =SUM(I126) -> 84.80 | J127: =SUM(J126) -> 4.00
B128: ОБЕД
A129: Салат из моркови с сахаром | C129: 40 | F129: 0.50 | G129: 0.04 | H129: 4.65 | I129: 20.92 | J129: 1.92 | K129: №42, Сб дошк 2016
B130: морковь | D130: 48.00 | E130: 38.40
B131: сахар | D131: 2.00 | E131: 2.00
A132: Борщ со свежей капустой, с картофелем на мясном бульоне, со сметаной | C132: 150/5 | F132: 1.81 | G132: 3.70 | H132: 6.74 | I132: 70.31 | J132: 6.43 | K132: №63, сб дошк 2016
B133: капуста свежая | D133: 15.00 | E133: 12.00
B134: картофель | D134: 15.96 | E134: 12.00
B135: морковь | D135: 9.38 | E135: 7.50
B136: лук репчатый | D136: 7.14 | E136: 6.00
B137: свекла | D137: 30.72 | E137: 24.00
B138: масло растительное | D138: 3.00 | E138: 3.00
B139: сахар | D139: 0.15 | E139: 0.15
B140: томатная паста | D140: 1.50 | E140: 1.50
B141: соль иодированная | D141: 0.50 | E141: 0.50
B142: бульон | D142: 120.00 | E142: 120.00
B143: сметана | D143: 5.00 | E143: 5.00
A144: Гуляш из отварной говядины | C144: 30/30 | F144: 8.73 | G144: 10.07 | H144: 1.73 | I144: 132.60 | J144: 0.56 | K144: №293 сб рецептур 2017
B145: говядина лопатка б/к | D145: 48.00 | E145: 48.00
B146: соль йодированная | D146: 0.30 | E146: 0.30
B147: масса отварной говядины | E147: 30.00
B148: морковь | D148: 13.13 | E148: 10.50
B149: лук репчатый | D149: 6.36 | E149: 5.30
B150: вода питьевая | D150: 22.50 | E150: 22.50
B151: томатная паста | D151: 0.90 | E151: 0.90
B152: мука пшеничная в/с | D152: 1.50 | E152: 1.50
B153: масло растительное | D153: 2.00 | E153: 2.00
B154: соль йодированная | D154: 0.15 | E154: 0.15
A155: Каша гречневая рассыпчатая с маслом сливочным | C155: 110/2 | F155: 6.45 | G155: 3.13 | H155: 29.16 | I155: 170.14 | J155: 0.00 | K155: №179 сб дошк 2016
B156: гречневая крупа | D156: 52.40 | E156: 52.40
B157: вода питьевая | D157: 78.10 | E157: 78.10
B158: соль йодированная | D158: 0.30 | E158: 0.30
B159: масло сливочное | D159: 2.00 | E159: 2.00
A160: Компот из свежих яблок | C160: 150 | F160: 0.12 | G160: 0.12 | H160: 20.91 | I160: 85.95 | J160: 2.85 | K160: №342 сб шк 2017
B161: яблоки свежие | D161: 28.50 | E161: 25.00
B162: сахар | D162: 5.00 | E162: 5.00
B163: вода | D163: 152.00 | E163: 152.00
A165: Хлеб пшеничный | C165: 25 | D165: 25.00 | E165: 25.00 | F165: 1.90 | G165: 0.20 | H165: 12.30 | I165: 58.75 | J165: 0.00 | K165: табл 6 стр 134, Дели +, 2012
A166: Хлеб ржаной | C166: 35 | D166: 35.00 | E166: 35.00 | F166: 2.31 | G166: 0.42 | H166: 13.85 | I166: 69.23 | K166: табл 6 стр 144, Дели +, 2012
A167: Итого: | C167: =C129+155+60+112+C160+C165+C166 -> 577 | F167: =SUM(F129:F166) -> 21.82 | G167: =SUM(G129:G166) -> 17.68 | H167: =SUM(H129:H166) -> 89.33 | I167: =SUM(I129:I166) -> 607.90 | J167: =SUM(J129:J166) -> 11.76
B168: УПЛОТНЕННЫЙ ПОЛДНИК
A169: Кисломолочный напиток | C169: 150 | F169: 4.35 | G169: 3.75 | H169: 6.30 | I169: 76.00 | J169: 0.45 | K169: №420 Сб дошк 2016
A170: (катык, кефир, напиток ацидофильный, ряженка) | B170: кисломолочный напиток | D170: 155.00 | E170: 150.00
A171: Королевская ватрушка | C171: 130 | F171: 15.98 | G171: 9.50 | H171: 50.58 | I171: 350.13 | K171: ТТК №810 от 15.02.2023
B172: посыпка низ:
B173: Масло сливочное | D173: 9.00 | E173: 9.00
B174: Мука пшеничная | D174: 17.00 | E174: 17.00
B175: Сахарный песок | D175: 9.00 | E175: 9.00
B176: творожная начинка:
B177: Творог | D177: 68.00 | E177: 68.00
B178: сахарный песок | D178: 13.50 | E178: 13.50
B179: Яйцо куриное | D179: 16.20 | E179: 13.50
B180: посыпка верх:
B181: Масло сливочное | D181: 3.50 | E181: 3.50
B182: Мука пшеничная | D182: 7.20 | E182: 7.20
B183: Сахарный песок | D183: 3.50 | E183: 3.50
A184: Чай с сахаром и лимоном | C184: 150/5/5 | F184: 0.10 | G184: 0.02 | H184: 5.18 | I184: 21.78 | J184: 2.24 | K184: №412 Дели 2016
B185: чай весовой | D185: 0.40 | E185: 0.40
B186: Сахар | D186: 5.00 | E186: 5.00
B187: лимон | D187: 5.55 | E187: 5.00
B188: Вода | D188: 150.00 | E188: 150.00
A189: Итого: | C189: =C169+C171+160 -> 440 | F189: =SUM(F169:F188) -> 20.43 | G189: =SUM(G169:G188) -> 13.27 | H189: =SUM(H169:H188) -> 62.06 | I189: =SUM(I169:I188) -> 447.91 | J189: =SUM(J169:J188) -> 2.69
A190: ВСЕГО: | C190: =C124+C127+C167+C189 -> 1576 | F190: =F124+F127+F167+F189 -> 54.86 | G190: =G124+G127+G167+G189 -> 43.33 | H190: =H124+H127+H167+H189 -> 226.35 | I190: =I124+I127+I167+I189 -> 1521.85 | J190: =J124+J127+J167+J189 -> 20.55
A192: День 3 - ий
A193: Наименование блюд и продуктов | B193: Ингридиенты | C193: Масса порции | D193: Кол - во (в г ) | E193: Кол - во (в г ) | F193: Пищевые вещества | I193: Энергетическая ценность | J193: Витамин | K193: Сборник рецептур
D194: брутто | E194: нетто | F194: белки | G194: жиры | H194: угл-ды | I194: Ккал | J194: С
B195: ЗАВТРАК
A196: Каша "Дружба" молочная с маслом сливочным | C196: 140/3 | F196: 4.22 | G196: 4.92 | H196: 23.38 | I196: 155.56 | J196: 0.60 | K196: ТТК №7Д
B197: Крупа рисовая | D197: 10.00 | E197: 10.00
B198: Крупа пшенная | D198: 7.50 | E198: 7.50
B199: Молоко | D199: 75.00 | E199: 75.00
B200: Вода | D200: 48.00 | E200: 48.00
B201: Сахар | D201: 2.00 | E201: 2.00
B202: соль иодированная | D202: 0.40 | E202: 0.40
B203: Масло сливочное | D203: 3.00 | E203: 3.00
A204: Чай с молоком,сахаром | C204: 180/6 | F204: 3.03 | G204: 2.40 | H204: 10.48 | I204: 75.76 | J204: 1.38 | K204: №413 сб дошк 2016
B205: чай весовой | D205: 0.45 | E205: 0.45
... 748 more rows

Sheet от 3х до 7 лет
A1: Утверждаю | H1: Согласовано
A2: Директор ООО "ФУДСОЦСЕРВИС" | H2: Руководитель дошкольной образовательной
A3: Харламова Э.Р. | H3: организации
C5: Примерное 10-дневное меню
C6: для организации питания детей в дошкольных учреждениях
C7: с 12 - часовым пребыванием от 3 до 7 лет
A8: День 1 - ый
A9: Наименование блюд и продуктов | B9: Ингридиенты | C9: Масса порции | D9: Кол - во (в г ) | E9: Кол - во (в г ) | F9: Пищевые вещества | I9: Энергетическая ценность | J9: Витамин | K9: Сборник рецептур
D10: брутто | E10: нетто | F10: белки | G10: жиры | H10: угл-ды | I10: Ккал | J10: С
B11: ЗАВТРАК
A12: Каша геркулесовая молочная с маслом сливочным | C12: 180/3 | F12: 7.44 | G12: 8.07 | H12: 33.80 | I12: 238.71 | J12: 0.86 | K12: ТТК №5Д
B13: Крупа геркулесовая | D13: 22.50 | E13: 22.50
B14: Молоко | D14: 158.00 | E14: 158.00
B15: Сахар | D15: 2.50 | E15: 2.50
B16: соль иодированная | D16: 0.50 | E16: 0.50
B17: Масло сливочное | D17: 3.00 | E17: 3.00
A18: Кофейный напиток с молоком | C18: 180/6 | F18: 2.85 | G18: 2.41 | H18: 10.35 | I18: 74.58 | J18: 1.17 | K18: №414 Дели 2016
B19: Кофейный напиток | D19: 2.50 | E19: 2.50
B20: Сахар | D20: 6.00 | E20: 6.00
B21: Молоко | D21: 90.00 | E21: 90.00
B22: Вода | D22: 108.00 | E22: 108.00
A23: Бутерброд с сыром, маслом сливочным | C23: 30/5/5 | F23: 3.61 | G23: 5.83 | H23: 15.49 | I23: 128.77 | J23: 0.07 | K23: №3 сб дошк 2016
B24: Батон нарезной | D24: 30.00 | E24: 30.00
B25: Сыр | D25: 5.10 | E25: 5.00
B26: Масло сливочное | D26: 5.00 | E26: 5.00
A27: Итого: | C27: =183+186+40 -> 409 | F27: =F12+F18+F23 -> 13.90 | G27: =G12+G18+G23 -> 16.31 | H27: =H12+H18+H23 -> 59.64 | I27: =I12+I18+I23 -> 442.06 | J27: =J12+J18+J23 -> 2.10
B28: 2 - ой ЗАВТРАК
A29: Фрукты свежие | C29: 100 | D29: 100.00 | E29: 100.00 | F29: 0.40 | G29: 0.40 | H29: 9.80 | I29: 47.00 | J29: 10.00 | K29: №386 СБ
A30: (яблоки,или апельсин, или банан,или мандарин ) | K30: дошк. 2016
A31: Итого: | C31: 100 | F31: =SUM(F29:F30) -> 0.40 | G31: =SUM(G29:G30) -> 0.40 | H31: =SUM(H29:H30) -> 9.80 | I31: =SUM(I29:I30) -> 47.00 | J31: =SUM(J29:J30) -> 10.00
B32: ОБЕД
A33: Икра кабачковая | C33: 50 | F33: 0.45 | G33: 2.35 | H33: 2.97 | I33: 34.80 | K33: №54 дошк. Сб 2016
B34: икра кабачковая | D34: 51.00 | E34: 50.00
A35: Суп картофельный с клецками на курином бульоне | C35: 180 | F35: 3.10 | G35: 3.44 | H35: 13.53 | I35: 107.24 | J35: 4.14 | K35: №91сб дошк 2016
B36: картофель | D36: 79.80 | E36: 60.00
B37: Морковь | D37: 9.00 | E37: 7.20
B38: Лук репчатый | D38: 8.60 | E38: 7.20
B39: Масло растительное | D39: 1.80 | E39: 1.80
B40: соль иодированная | D40: 0.60 | E40: 0.60
B41: бульон | D41: 135.00 | E41: 135.00
B42: клецки: | E42: 18.00
B43: мука пшеничная | D43: 5.50 | E43: 5.50
B44: Масло сливочное | D44: 0.60 | E44: 0.60
B45: яйцо | D45: 1.92 | E45: 1.60
B46: вода | D46: 8.80 | E46: 8.80
B47: соль йодированная | D47: 0.16 | E47: 0.16
B48: масса теста | E48: 16.20
B49: масса готовых клецек | E49: 18.00
A50: Плов из отварной птицы | C50: 200 | F50: 11.19 | G50: 10.93 | H50: 31.80 | I50: 282.55 | J50: 0.18 | K50: №321 сб дошк 2016
B51: цыплята-бройлеры с/м | D51: 78.00 | E51: 73.60
B52: масса отварной птицы | E52: 32.00
B53: масло сливочное | D53: 8.00 | E53: 8.00
B54: Лук репчатый | D54: 11.90 | E54: 10.00
B55: Морковь | D55: 16.25 | E55: 13.00
B56: Крупа рисовая | D56: 55.00 | E56: 55.00
B57: вода | D57: 86.00 | E57: 86.00
B58: соль иодированная | D58: 0.80 | E58: 0.80
B59: масса гарнира | E59: 168.00
A60: Напиток из сухофруктов | C60: 180 | F60: 0.60 | G60: 0.08 | H60: 16.81 | I60: 72 | J60: 0.65 | K60: №394 Сб дошк 2016
B61: сухофрукты | D61: 15.30 | E61: 15.00
B62: Сахар | D62: 6.00 | E62: 6.00
B63: вода | D63: 183.00 | E63: 183.00
A64: Хлеб пшеничный | C64: 35 | D64: 35.00 | E64: 35.00 | F64: 2.66 | G64: 0.28 | H64: 17.22 | I64: 82.25 | J64: 0.00 | K64: табл 6 стр 134, Дели +, 2012
A65: Хлеб ржаной | C65: 45 | D65: 45.00 | E65: 45.00 | F65: 2.97 | G65: 0.54 | H65: 17.84 | I65: 89.19 | K65: табл 6 стр 144, Дели +, 2012
A66: Итого: | C66: =C33+C35+C50+C60+C64+C65 -> 690 | F66: =SUM(F32:F65) -> 20.97 | G66: =SUM(G32:G65) -> 17.63 | H66: =SUM(H32:H65) -> 100.17 | I66: =SUM(I32:I65) -> 667.55 | J66: =SUM(J32:J65) -> 4.97
B67: УПЛОТНЕННЫЙ ПОЛДНИК
A68: Кисломолочный напиток | C68: 180 | F68: 5.22 | G68: 4.50 | H68: 7.56 | I68: 92.00 | J68: 0.54 | K68: №420 СБ дошк 2016
A69: (катык, кефир, напиток ацидофильный, ряженка) | B69: кисломолочный напиток | D69: 185.00 | E69: 180.00
A70: Кондитерское изделие | B70: печенье | C70: 20 | D70: 20.00 | E70: 20.00 | F70: 1.50 | G70: 1.96 | H70: 14.88 | I70: 83.40 | K70: табл 6 стр 136, Дели +, 2012
A71: Пудинг рыбный | C71: 60/20 | F71: 11.97 | G71: 3.91 | H71: 5.87 | I71: 106.67 | J71: 0.46 | K71: №286 СБ дошк 2016
B72: рыба (минтай с/м БГ) | D72: 68.34 | E72: 50.25
B73: масса отварной рыбы | E73: 39.75
B74: Хлеб пшеничный | D74: 8.25 | E74: 8.25
B75: яйцо | D75: 6.30 | E75: 5.25
B76: молоко | D76: 12.00 | E76: 12.00
B77: масло сливочное | D77: 2.25 | E77: 2.25
B78: соль иодированная | D78: 0.40 | E78: 0.40
B79: Масло растительное | D79: 1.00 | E79: 1.00
B80: масса пудинга | E80: 60.00
B81: Соус молочный
B82: молоко | D82: 10.00 | E82: 10.00
B83: масло сливочное | D83: 1.10 | E83: 1.10
B84: Мука пшеничная | D84: 1.10 | E84: 1.10
B85: Вода | D85: 10.00 | E85: 10.00
B86: Сахар | D86: 0.20 | E86: 0.20
B87: соль иодированная | D87: 0.13 | E87: 0.13
B88: масса соуса | E88: 20.00
A89: Пюре Картофельное | C89: 140 | F89: 2.86 | G89: 4.48 | H89: 19.08 | I89: 128.10 | J89: 16.96 | K89: №339 СБ дошк 2016
B90: Картофель | D90: 159.60 | E90: 119.70
B91: Молоко | D91: 22.12 | E91: 21.00
B92: Масло сливочное | D92: 5.00 | E92: 5.00
B93: соль иодированная | D93: 0.52 | E93: 0.52
A94: Чай с сахаром | C94: 180/6 | F94: 0.06 | G94: 0.02 | H94: 6.01 | I94: 23.94 | J94: 0.03 | K94: №410, 411 Дели 2016
B95: чай весовой | D95: 0.45 | E95: 0.45
B96: сахар | D96: 6.00 | E96: 6.00
B97: Вода | D97: 180.00 | E97: 180.00
A98: Хлеб пшеничный | C98: 35 | D98: 35.00 | E98: 35.00 | F98: 2.66 | G98: 0.28 | H98: 17.22 | I98: 82.25 | J98: 0.00 | K98: табл 6 стр 134, Дели +, 2012
A99: Итого: | C99: =C68+C70+80+C89+186+C98 -> 641 | F99: =F68+F70+F71+F89+F94+F98 -> 24.27 | G99: =G68+G70+G71+G89+G94+G98 -> 15.15 | H99: =H68+H70+H71+H89+H94+H98 -> 70.62 | I99: =I68+I70+I71+I89+I94+I98 -> 516.36 | J99: =J68+J70+J71+J89+J94+J98 -> 17.99
A100: ВСЕГО: | C100: =C27+C31+C66+C99 -> 1840 | F100: =F27+F31+F66+F99 -> 59.54 | G100: =G27+G31+G66+G99 -> 49.49 | H100: =H27+H31+H66+H99 -> 240.23 | I100: =I27+I31+I66+I99 -> 1672.96 | J100: =J27+J31+J66+J99 -> 35.06
A102: День 2- ой
A103: Наименование блюд и продуктов | B103: Ингридиенты | C103: Масса порции | D103: Кол - во (в г ) | E103: Кол - во (в г ) | F103: Пищевые вещества | I103: Энергетическая ценность | J103: Витамин | K103: Сборник рецептур
D104: брутто | E104: нетто | F104: белки | G104: жиры | H104: угл-ды | I104: Ккал | J104: С
B105: ЗАВТРАК
A106: Каша пшеничная молочная с маслом сливочным | C106: 180/3 | F106: 7.73 | G106: 5.60 | H106: 39.81 | I106: 241.16 | J106: 0.86 | K106: ТТК № 9Д
B107: Крупа пшеничная | D107: 22.50 | E107: 22.50
B108: Молоко | D108: 90.00 | E108: 90.00
B109: Вода | D109: 68.00 | E109: 68.00
B110: Сахар | D110: 2.50 | E110: 2.50
B111: соль иодированная | D111: 0.50 | E111: 0.50
B112: Масло сливочное | D112: 3.00 | E112: 3.00
A113: Какао с молоком | C113: 180/6 | F113: 3.67 | G113: 3.19 | H113: 10.87 | I113: 90.78 | J113: 1.43 | K113: №416 Дели 2016
B114: Какао-порошок | D114: 2.00 | E114: 2.00
B115: Сахар | D115: 6.00 | E115: 6.00
B116: Молоко | D116: 110.00 | E116: 110.00
B117: Вода | D117: 80.00 | E117: 80.00
A118: Бутерброд с маслом сливочным | C118: 30/5 | F118: 2.29 | G118: 4.50 | H118: 15.49 | I118: 111.68 | K118: №1 Дели 2010
B119: Батон нарезной | D119: 30.00 | E119: 30.00
B120: Масло сливочное | D120: 5.00 | E120: 5.00
A121: Итого: | C121: =183+186+35 -> 404 | F121: =SUM(F106:F120) -> 13.69 | G121: =SUM(G106:G120) -> 13.29 | H121: =SUM(H106:H120) -> 66.17 | I121: =SUM(I106:I120) -> 443.62 | J121: =SUM(J106:J120) -> 2.29
B122: 2 - ой ЗАВТРАК
A123: Сок в инд.упаковке | C123: 200 | D123: 200.00 | E123: 200.00 | F123: 1.00 | G123: 0.00 | H123: 20.20 | I123: 84.80 | J123: 4.00 | K123: №418 Дели 2016
A124: Итого: | C124: 200 | F124: =SUM(F123) -> 1.00 | G124: =SUM(G123) -> 0.00 | H124: =SUM(H123) -> 20.20 | I124: =SUM(I123) -> 84.80 | J124: =SUM(J123) -> 4.00
B125: ОБЕД
A126: Салат из моркови с сахаром | C126: 60 | F126: 0.75 | G126: 0.06 | H126: 6.97 | I126: 31.38 | J126: 2.88 | K126: №42, сб шк 2017
B127: морковь | D127: 72.00 | E127: 57.60
B128: сахар | D128: 3.00 | E128: 3.00
A129: Борщ со свежей капустой, с картофелем на мясном бульоне, со сметаной | C129: 180/7 | F129: 1.48 | G129: 4.59 | H129: 8.12 | I129: 85.97 | J129: 7.71 | K129: №63 сб дошк 2016
B130: Капуста свежая | D130: 20.00 | E130: 16.00
B131: Картофель | D131: 21.28 | E131: 16.00
B132: Морковь | D132: 12.50 | E132: 10.00
B133: Лук репчатый | D133: 9.52 | E133: 8.00
B134: Свекла | D134: 41.00 | E134: 32.00
B135: Сахар | D135: 0.20 | E135: 0.20
B136: Томат-паста | D136: 2.00 | E136: 2.00
B137: Масло растительное | D137: 4.00 | E137: 4.00
B138: соль иодированная | D138: 0.70 | E138: 0.70
B139: Бульон | D139: 140.00 | E139: 140.00
B140: Сметана | D140: 7.00 | E140: 7.00
A141: Гуляш из отварной говядины | C141: 40/40 | F141: 11.64 | G141: 13.43 | H141: 2.31 | I141: 176.80 | J141: 0.74 | K141: №260 сб рецептур 2017
B142: говядина лопатка б/к | D142: 64.00 | E142: 64.00
B143: соль йодированная | D143: 0.40 | E143: 0.40
B144: масса отварной говядины | E144: 40.00
B145: морковь | D145: 17.50 | E145: 14.00
B146: лук репчатый | D146: 8.50 | E146: 7.10
B147: вода питьевая | D147: 30.00 | E147: 30.00
B148: томатная паста | D148: 1.20 | E148: 1.20
B149: мука пшеничная в/с | D149: 2.00 | E149: 2.00
B150: масло растительное | D150: 2.70 | E150: 2.70
B151: соль йодированная | D151: 0.20 | E151: 0.20
A152: Каша гречневая рассыпчатая с маслом сливочным | C152: 130/3 | F152: 7.62 | G152: 4.16 | H152: 34.47 | I152: 205.27 | J152: 0.00 | K152: №179 сб дошк 2016
B153: гречневая крупа | D153: 61.90 | E153: 61.90
B154: вода питьевая | D154: 92.30 | E154: 92.30
B155: соль йодированная | D155: 0.40 | E155: 0.40
B156: масло сливочное | D156: 3.00 | E156: 3.00
A157: Компот из свежих яблок | C157: 180 | F157: 0.14 | G157: 0.14 | H157: 25.09 | I157: 103.14 | J157: 0.81 | K157: №342 сб шк 2017
B158: яблоки свежие | D158: 34.00 | E158: 30.00
B159: сахар | D159: 6.00 | E159: 6.00
B160: вода | D160: 183.00 | E160: 183.00
A161: Хлеб пшеничный | C161: 35 | D161: 35.00 | E161: 35.00 | F161: 2.66 | G161: 0.28 | H161: 17.22 | I161: 82.25 | J161: 0.00 | K161: табл 6 стр 134, Дели +, 2012
A162: Хлеб ржаной | C162: 45 | D162: 45.00 | E162: 45.00 | F162: 2.97 | G162: 0.54 | H162: 17.84 | I162: 89.19 | K162: табл 6 стр 144, Дели +, 2012
A163: Итого: | C163: =C126+187+80+133+C157+C161+C162 -> 720 | F163: =SUM(F126:F162) -> 27.27 | G163: =SUM(G126:G162) -> 23.20 | H163: =SUM(H126:H162) -> 112.01 | I163: =SUM(I126:I162) -> 773.99 | J163: =SUM(J126:J162) -> 12.14
B164: УПЛОТНЕННЫЙ ПОЛДНИК
A165: Кисломолочный напиток | C165: 180 | F165: 5.22 | G165: 4.50 | H165: 7.56 | I165: 92.00 | J165: 0.45 | K165: №420 СБ дошк 2016
A166: (катык, кефир, напиток ацидофильный, ряженка) | B166: кисломолочный напиток | D166: 185.00 | E166: 180.00
A167: Королевская ватрушка | C167: 150 | F167: 18.44 | G167: 10.96 | H167: 58.36 | I167: 404.00 | K167: ТТК
B168: посыпка низ:
B169: Масло сливочное | D169: 10.70 | E169: 10.70
B170: Мука пшеничная | D170: 21.00 | E170: 21.00
B171: Сахарный песок | D171: 10.70 | E171: 10.70
B172: творожная начинка:
B173: Творог | D173: 78.50 | E173: 78.50
B174: Сахарный песок | D174: 15.00 | E174: 15.00
B175: Яйцо куриное | D175: 18.00 | E175: 15.00
B176: посыпка низ:
B177: Масло сливочное | D177: 4.25 | E177: 4.25
B178: Мука пшеничная | D178: 7.80 | E178: 7.80
B179: Сахарный песок | D179: 4.25 | E179: 4.25
A180: Чай с сахаром и лимоном | C180: 180/6/7 | F180: 0.13 | G180: 0.03 | H180: 6.23 | I180: 26.48 | J180: 2.83 | K180: №412 Дели 2016
B181: чай весовой | D181: 0.45 | E181: 0.45
B182: Сахар | D182: 6.00 | E182: 6.00
B183: лимон | D183: 8.00 | E183: 7.00
B184: Вода | D184: 180.00 | E184: 180.00
A185: Итого: | C185: =C165+C167+193 -> 523 | F185: =SUM(F165:F184) -> 23.79 | G185: =SUM(G165:G184) -> 15.49 | H185: =SUM(H165:H184) -> 72.15 | I185: =SUM(I165:I184) -> 522.48 | J185: =SUM(J165:J184) -> 3.28
A186: ВСЕГО: | C186: =C121+C124+C163+C185 -> 1847 | F186: =F121+F124+F163+F185 -> 65.75 | G186: =G121+G124+G163+G185 -> 51.98 | H186: =H121+H124+H163+H185 -> 270.53 | I186: =I121+I124+I163+I185 -> 1824.89 | J186: =J121+J124+J163+J185 -> 21.71
A188: День 3 - ий
A189: Наименование блюд и продуктов | B189: Ингридиенты | C189: Масса порции | D189: Кол - во (в г ) | E189: Кол - во (в г ) | F189: Пищевые вещества | I189: Энергетическая ценность | J189: Витамин | K189: Сборник рецептур
D190: брутто | E190: нетто | F190: белки | G190: жиры | H190: угл-ды | I190: Ккал | J190: С
B191: ЗАВТРАК
A192: Каша "Дружба" молочная с маслом сливочным | C192: 180/3 | F192: 5.34 | G192: 8.40 | H192: 29.46 | I192: 215.85 | J192: 0.86 | K192: ТТК №7Д
B193: Крупа рисовая | D193: 13.50 | E193: 13.50
B194: Крупа пшенная | D194: 10.00 | E194: 10.00
B195: Молоко | D195: 90.00 | E195: 90.00
B196: Вода | D196: 68.00 | E196: 68.00
B197: Сахар | D197: 2.50 | E197: 2.50
B198: соль иодированная | D198: 0.50 | E198: 0.50
B199: Масло сливочное | D199: 3.00 | E199: 3.00
A200: Чай с молоком, сахаром | C200: 180/6 | F200: 3.03 | G200: 2.40 | H200: 10.48 | I200: 75.76 | J200: 1.38 | K200: №413 сб дошк 2016
B201: чай весовой | D201: 0.45 | E201: 0.45
B202: Сахар | D202: 6.00 | E202: 6.00
B203: Молоко | D203: 92.00 | E203: 90.00
... 745 more rows
